fUST/lending_fUST_20240324
["ID","MTS","AMOUNT","RATE_DAILY","PERIOD"]
[320293501,1711253440040,-773.52,0.00024998,2]
[320293502,1711253440049,-500.0,0.00024998,2]
[320293503,1711253440058,-650.35950998,0.00024998,2]
[320293504,1711253440070,-1140.81049002,0.00024998,2]
[320293505,1711253440079,-522.07,0.00024998,2]
[320293506,1711253440088,-515.84,0.00024998,2]
[320293507,1711253440097,-922.21,0.00024998,2]
[320293508,1711253440108,-500.0,0.00024998,2]
[320293509,1711253440117,-1742.49,0.00024998,2]
[320293510,1711253440126,-500.0,0.00024998,2]
[320293511,1711253440135,-500.0,0.00024998,2]
[320293512,1711253440144,-156.07227324,0.00024998,2]
[320293513,1711253440153,-773.4,0.00024998,2]
[320293514,1711253440162,-500.0,0.00024998,2]
[320293515,1711253440171,-552.75,0.00024998,2]
[320293516,1711253440181,-3354.53,0.00024998,2]
[320293517,1711253440190,-500.0,0.00024998,2]
[320293518,1711253440199,-2065.66,0.00024998,2]
[320293519,1711253440208,-716.59,0.00024998,2]
[320293520,1711253440218,-500.0,0.00024998,2]
[320293521,1711253440231,-889.15,0.00024998,2]
[320293522,1711253440240,-500.0,0.00024998,2]
[320293523,1711253440250,-500.0,0.00024998,2]
[320293524,1711253440259,-1829.18,0.00024998,2]
[320293525,1711253440269,-319.24723674,0.00024998,2]
[320293653,1711253442966,-270.0,0.00024998,2]
[320293665,1711253443025,-6220.71276326,0.00024998,2]
[320293668,1711253443034,-620.31,0.00024998,2]
[320293670,1711253443043,-2192.87,0.00024998,2]
[320293672,1711253443052,-241.6879915,0.00024999,2]
[320293674,1711253443061,-384.97847442,0.00024999,2]
[320293675,1711253443070,-4928.86363306,0.00024999,2]
[320293677,1711253443082,-3753.25636694,0.00024999,2]
[320293680,1711253443100,-154.95351395,0.00025,2]
[320293682,1711253443113,-445.20357372,0.00025,2]
[320293683,1711253443123,-10429.87273091,0.00025,2]
[320293826,1711253445988,-52626.44728941,0.00025,2]
[320293827,1711253446001,-4236.67997968,0.00025,2]
[320293828,1711253446011,-500.0,0.00025025,2]
[320293829,1711253446021,-4934.10106993,0.00025097,2]
[320293830,1711253446031,-399.237667,0.000251,2]
[320293831,1711253446040,-151.88560202,0.00025195,2]
[320293832,1711253446049,-9888.29380137,0.00025197,2]
[320294012,1711254638091,-180.10493952,0.00023524,2]
[320294013,1711254638100,-180.10493952,0.00024371,2]
[320294014,1711254638110,-180.10493952,0.00024465,2]
[320294015,1711254638119,-166.666667,0.00024475,2]
[320294016,1711254638129,-180.10493952,0.00024567,2]
[320294017,1711254638138,-146.73549212,0.00024654,2]
[320294018,1711254638151,-8.74197282,0.00024654,2]
[320294019,1711254638160,-166.666666,0.00024658,2]
[320294020,1711254638170,-4000.0,0.000248,2]
[320294021,1711254638179,-3764.26372686,0.000248,2]
[320294022,1711254638188,-402.464081,0.000248,2]
[320294023,1711254638197,-156.45179107,0.00024898,2]
[320294024,1711254638207,-2161.51256593,0.00024923,2]
[320294107,1711254646139,-14294.21743407,0.00024923,2]
[320294108,1711254646149,-155.47746494,0.00024941,2]
[320294109,1711254646158,-265.08469837,0.00024996,7]
[320294110,1711254646167,-155.77922761,0.00024996,2]
[320294111,1711254646177,-296.42009408,0.00024996,2]
[320294112,1711254646186,-155.75645605,0.00024996,2]
[320294113,1711254646195,-573.75919571,0.00024996,2]
[320294114,1711254646206,-156.40333422,0.00024996,2]
[320294115,1711254646215,-306.3780589,0.00024996,2]
[320294116,1711254646225,-155.36307278,0.00024997,2]
[320294117,1711254646234,-241.6879915,0.00024997,2]
[320294118,1711254646243,-384.97847442,0.00024997,2]
[320294119,1711254646253,-500.0,0.00024998,2]
[320294120,1711254646263,-500.0,0.00024998,2]
[320294122,1711254646272,-500.0,0.00024998,2]
[320294124,1711254646284,-500.0,0.00024998,2]
[320294126,1711254646293,-500.0,0.00024998,2]
[320294128,1711254646303,-762.03,0.00024998,2]
[320294130,1711254646312,-500.0,0.00024998,2]
[320294131,1711254646321,-605.67,0.00024998,2]
[320294132,1711254646330,-715.84,0.00024998,2]
[320294133,1711254646340,-500.0,0.00024998,2]
[320294134,1711254646350,-500.0,0.00024998,2]
[320294135,1711254646359,-716.23,0.00024998,2]
[320294136,1711254646369,-500.0,0.00024998,2]
[320294137,1711254646379,-774.92,0.00024998,2]
[320294138,1711254646388,-639.02,0.00024998,2]
[320294139,1711254646398,-500.0,0.00024998,2]
[320294140,1711254646407,-500.0,0.00024998,2]
[320294141,1711254646416,-500.0,0.00024998,2]
[320294142,1711254646425,-965.87,0.00024998,2]
[320294143,1711254646434,-637.06,0.00024998,2]
[320294144,1711254646444,-741.29,0.00024998,2]
[320294145,1711254646454,-500.0,0.00024998,2]
[320294146,1711254646465,-5819.03998158,0.00024998,2]
[320294149,1711255651151,-150.0,0.00022898,2]
[320294150,1711255651173,-166.666667,0.00024255,2]
[320294151,1711255651193,-242.920478,0.00024428,2]
[320294152,1711255651214,-161.424866,0.00024428,2]
[320294153,1711255651235,-242.920478,0.00024428,2]
[320294154,1711255651255,-161.424867,0.00024428,2]
[320294155,1711255651276,-17712.65358676,0.000245,7]
[320294156,1711255651298,-166.666666,0.00024658,2]
[320294157,1711255651319,-156.45179107,0.00024897,2]
[320294158,1711255651340,-482.61633561,0.00024897,2]
[320294159,1711255651360,-195.64780138,0.00024898,2]
[320294160,1711255651382,-482.6163356,0.00024966,2]
[320294161,1711255651403,-2346.69991996,0.00024997,2]
[320294162,1711255651425,-1794.41,0.00024997,2]
[320294163,1711255651446,-923.88,0.00024997,2]
[320294164,1711255651467,-1745.64,0.00024997,2]
[320294165,1711255651489,-15914.73,0.00024997,2]
[320294166,1711255651511,-554.8,0.00024997,2]
[320294167,1711255651530,-2069.4,0.00024997,2]
[320294168,1711255651551,-500.0,0.00024997,2]
[320294169,1711255651571,-1752.96,0.00024997,2]
[320294170,1711255651592,-331.18314169,0.00024997,2]
[320294224,1711255838259,-156.09094758,0.0002344,2]
[320294226,1711255838268,-155.97573079,0.00024137,2]
[320294227,1711255838278,-156.09094758,0.00024376,2]
[320294229,1711255838287,-155.97573079,0.00024376,2]
[320294231,1711255838296,-155.97573079,0.00024692,2]
[320294233,1711255838305,-155.97573079,0.00024874,2]
[320294235,1711255838314,-155.97573079,0.00024896,2]
[320294237,1711255838323,-156.09094758,0.00024941,2]
[320294238,1711255838332,-620.31,0.00024997,2]
[320294240,1711255838341,-2192.87,0.00024997,2]
[320294242,1711255838350,-547.58,0.00024997,2]
[320294244,1711255838359,-710.41,0.00024997,2]
[320294246,1711255838368,-500.0,0.00024997,2]
[320294248,1711255838377,-500.0,0.00024997,2]
[320294249,1711255838386,-154.21502873,0.00024997,2]
[320294251,1711255838395,-5417.04236304,0.00024997,2]
[320294253,1711255838408,-3831.88763696,0.00024997,2]
[320294255,1711255838417,-524.0,0.00024997,2]
[320294257,1711255838426,-517.75,0.00024997,2]
[320294259,1711255838434,-500.0,0.00024997,2]
[320294261,1711255838443,-15251.62,0.00024997,2]
[320294263,1711255838452,-3366.95,0.00024997,2]
[320294264,1711255838461,-875.48,0.00024997,2]
[320294266,1711255838470,-531.68,0.00024997,2]
[320294268,1711255838480,-500.0,0.00024997,2]
[320294270,1711255838488,-500.0,0.00024997,2]
[320294272,1711255838497,-892.44,0.00024997,2]
[320294274,1711255838506,-500.0,0.00024997,2]
[320294276,1711255838515,-498.96614422,0.00024997,2]
[320294400,1711256115845,10000.0,0.000206,2]
[320294401,1711256122209,10000.0,0.000206,2]
[320294402,1711256130735,10000.0,0.000206,2]
[320294403,1711256137093,9999.5,0.000206,2]
[320294417,1711256833102,-3287.3647157,0.000235,2]
[320294418,1711256833125,-150.51627088,0.00023783,2]
[320294419,1711256833145,-150.51627088,0.00023792,2]
[320294420,1711256833164,-55957.52579722,0.00024,30]
[320294421,1711256833185,-289.56980136,0.00024361,2]
[320294422,1711256833204,-150.51627088,0.00024461,2]
[320294423,1711256833224,-166.666666,0.00024658,2]
[320294424,1711256833246,-25583.36316083,0.00024899,2]
[320294425,1711256833266,-15239.63,0.00024996,2]
[320294426,1711256833286,-16353.26163835,0.00024997,3]
[320294427,1711256833306,-500.0,0.00024997,2]
[320294428,1711256833324,-500.0,0.00024997,2]
[320294429,1711256833342,-610.52,0.00024997,2]
[320294430,1711256833361,-500.0,0.00024997,2]
[320294431,1711256833380,-507.14281655,0.00024997,2]
[320294432,1711256833401,-500.0,0.00024997,2]
[320294433,1711256833420,-500.0,0.00024997,2]
[320294434,1711256833439,-776.26,0.00024997,2]
[320294435,1711256833458,-500.0,0.00024997,2]
[320294436,1711256833478,-719.25,0.00024997,2]
[320294437,1711256833497,-500.0,0.00024997,2]
[320294438,1711256833516,-500.0,0.00024997,2]
[320294439,1711256833536,-500.0,0.00024997,2]
[320294440,1711256833556,-504.04216507,0.00024997,2]
[320294441,1711256833575,-500.0,0.00024997,2]
[320294442,1711256833595,-248.76055679,0.00024997,2]
[320294492,1711257032351,-150.90343483,0.00023424,2]
[320294493,1711257032361,-150.51627088,0.00023952,2]
[320294494,1711257032371,-289.56980136,0.00024495,2]
[320294495,1711257032381,-150.90343483,0.00024523,2]
[320294496,1711257032390,-289.56980136,0.00024629,2]
[320294497,1711257032399,-166.666666,0.00024658,2]
[320294498,1711257032408,-150.90343483,0.00024695,2]
[320294499,1711257032417,-289.56980136,0.00024763,2]
[320294500,1711257032427,-53662.11849947,0.00024879,2]
[320294501,1711257032436,-16552.86376154,0.00024897,2]
[320294502,1711257032446,-289.56980136,0.00024897,2]
[320294503,1711257032455,-150.90343483,0.00024935,2]
[320294504,1711257032464,-14604.65,0.00024996,2]
[320294505,1711257032474,-251.23944321,0.00024997,2]
[320294506,1711257032483,-730.28,0.00024997,2]
[320294507,1711257032492,-500.0,0.00024997,2]
[320294508,1711257032501,-580.44,0.00024997,2]
[320294509,1711257032510,-686.02,0.00024997,2]
[320294510,1711257032520,-777.79,0.00024997,2]
[320294511,1711257032529,-500.0,0.00024997,2]
[320294512,1711257032538,-641.38,0.00024997,2]
[320294513,1711257032547,-500.0,0.00024997,2]
[320294514,1711257032555,-7250.63100299,0.00024997,2]
[320294547,1711257038403,-1489.75899701,0.00024997,2]
[320294548,1711257038413,-1719.64,0.00024997,2]
[320294549,1711257038422,-67.96571871,0.00024997,2]
[320294633,1711257046789,-8795.58428129,0.00024997,2]
[320294634,1711257046799,-500.0,0.00024997,2]
[320294635,1711257046808,-885.39,0.00024997,2]
[320294636,1711257046818,-500.0,0.00024997,2]
[320294637,1711257046827,-1672.91,0.00024997,2]
[320294638,1711257046838,-500.0,0.00024997,2]
[320294639,1711257046847,-1983.17,0.00024997,2]
[320294640,1711257046856,-500.0,0.00024997,2]
[320294641,1711257046866,-500.0,0.00024997,2]
[320294642,1711257046875,-500.0,0.00024999,2]
[320294643,1711257046885,-500.0,0.00024999,2]
[320294644,1711257046894,-718.89,0.00024999,2]
[320294645,1711257046903,-500.0,0.00024999,2]
[320294646,1711257046912,-500.0,0.00024999,2]
[320294647,1711257046922,-594.47,0.00024999,2]
[320294648,1711257046931,-925.62,0.00024999,2]
[320294649,1711257046940,-2101.5,0.00024999,2]
[320294650,1711257046949,-680.81,0.00024999,2]
[320294651,1711257046958,-524.76,0.00024999,2]
[320294652,1711257046968,-500.0,0.00024999,2]
[320294653,1711257046977,-502.17,0.00024999,2]
[320294654,1711257046986,-500.0,0.00024999,2]
[320294655,1711257046995,-743.92,0.00024999,2]
[320294656,1711257047004,-500.0,0.00024999,2]
[320294657,1711257047013,-689.28,0.00024999,2]
[320294658,1711257047022,-2800.08166556,0.00024999,2]
[320294665,1711257885982,-976.00260315,0.000231,3]
[320294667,1711258050166,-14029.52,0.00024657,2]
[320294668,1711258050186,-166.666666,0.00024658,2]
[320294669,1711258050207,-156.45179107,0.00024779,2]
[320294670,1711258050226,-500.0,0.00024879,2]
[320294671,1711258050390,-712.92,0.00024879,2]
[320294672,1711258050410,-660.56,0.00024879,2]
[320294673,1711258050430,-500.0,0.00024879,2]
[320294674,1711258050450,-305.33291045,0.00024879,2]
[320294675,1711258050469,-500.0,0.00024879,2]
[320294676,1711258050491,-492.22938262,0.00024879,2]
[320294677,1711258050510,-500.0,0.00024879,2]
[320294678,1711258050530,-500.0,0.00024879,2]
[320294679,1711258050550,-699.85,0.00024879,2]
[320294680,1711258050570,-500.0,0.00024879,2]
[320294681,1711258050592,-556.25,0.00024879,2]
[320294682,1711258050614,-657.43,0.00024879,2]
[320294683,1711258050634,-500.0,0.00024879,2]
[320294684,1711258050654,-500.0,0.00024879,2]
[320294685,1711258050675,-500.0,0.00024879,2]
[320294686,1711258050696,-1647.99,0.00024879,2]
[320294687,1711258050717,-688.93,0.00024879,2]
[320294688,1711258050738,-7722.95199961,0.00024879,2]
[320294700,1711258054102,-150.51627088,0.00023801,2]
[320294701,1711258054122,-150.51627088,0.00024457,2]
[320294702,1711258054141,-771.28800039,0.00024879,2]
[320294703,1711258054161,-500.0,0.00024879,2]
[320294704,1711258054181,-500.0,0.00024879,2]
[320294705,1711258054201,-848.5,0.00024879,2]
[320294706,1711258054222,-1603.2,0.00024879,2]
[320294707,1711258054242,-714.32,0.00024879,2]
[320294708,1711258054262,-614.66,0.00024879,2]
[320294709,1711258054282,-500.0,0.00024879,2]
[320294710,1711258054301,-500.0,0.00024879,2]
[320294711,1711258054321,-839.01,0.00024879,2]
[320294712,1711258054342,-509.53,0.00024879,2]
[320294713,1711258054361,-500.0,0.00024879,2]
[320294714,1711258054380,-1900.54,0.00024879,2]
[320294715,1711258054400,-3109.99,0.00024879,2]
[320294716,1711258054420,-500.0,0.00024879,2]
[320294717,1711258054440,-500.0,0.00024879,2]
[320294718,1711258054460,-585.08,0.00024879,2]
[320294719,1711258054480,-500.0,0.00024879,2]
[320294720,1711258054500,-500.0,0.00024879,2]
[320294721,1711258054520,-7059.78,0.00024879,2]
[320294722,1711258054540,-855.25,0.00024879,2]
[320294723,1711258054559,-348.92840198,0.00024879,2]
[320294724,1711258054580,-1766.52,0.00024879,2]
[320294725,1711258054603,-930.87,0.00024879,2]
[320294726,1711258054625,-596.51,0.00024879,2]
[320294727,1711258054646,-587.03154101,0.00024879,2]
[320294728,1711258054670,-502.9,0.00024879,2]
[320294729,1711258054689,-500.0,0.00024879,2]
[320294730,1711258054709,-2113.43,0.00024879,2]
[320294731,1711258054729,-500.0,0.00024879,2]
[320294732,1711258054749,-652.44,0.00024879,2]
[320294733,1711258054769,-8376.2,0.00024879,2]
[320294734,1711258054789,-14029.52,0.00024931,2]
[320294735,1711258054810,-5366.45609798,0.00024972,2]
[320294736,1711258054831,-500.0,0.00024997,2]
[320294737,1711258054851,-500.0,0.00024999,2]
[320294738,1711258054873,-500.0,0.00024999,2]
[320294739,1711258054893,-226.09187791,0.00025,2]
[320294740,1711258054912,-445.20357372,0.00025,2]
[320294741,1711258054931,-32955.01254525,0.00025,10]
[320294876,1711258238587,-150.90343483,0.00023604,2]
[320294877,1711258238596,-150.90343483,0.0002362,2]
[320294878,1711258238606,-12860.39,0.00024657,2]
[320294879,1711258238615,-166.666666,0.00024658,2]
[320294880,1711258238625,-156.45179107,0.00024779,2]
[320294882,1711258238634,-1579.32,0.00024879,2]
[320294883,1711258238648,-8140.31,0.00024879,2]
[320294884,1711258238657,-500.0,0.00024879,2]
[320294885,1711258238666,-500.0,0.00024879,2]
[320294886,1711258238675,-813.14,0.00024879,2]
[320294887,1711258238685,-500.0,0.00024879,2]
[320294888,1711258238695,-1536.4,0.00024879,2]
[320294889,1711258238704,-594.1,0.00024879,2]
[320294890,1711258238713,-633.04,0.00024879,2]
[320294891,1711258238724,-804.05,0.00024879,2]
[320294892,1711258238734,-500.0,0.00024879,2]
[320294893,1711258238743,-500.0,0.00024879,2]
[320294894,1711258238753,-500.0,0.00024879,2]
[320294895,1711258238764,-500.0,0.00024879,2]
[320294896,1711258238773,-2980.41,0.00024879,2]
[320294897,1711258238782,-500.0,0.00024879,2]
[320294898,1711258238792,-1821.35,0.00024879,2]
[320294899,1711258238801,-500.0,0.00024879,2]
[320294900,1711258238810,-500.0,0.00024879,2]
[320294901,1711258238820,-500.0,0.00024879,2]
[320294902,1711258238830,-819.62,0.00024879,2]
[320294903,1711258238840,-500.0,0.00024879,2]
[320294904,1711258238850,-6765.62,0.00024879,2]
[320294905,1711258238859,-12860.39,0.00024931,2]
[320294906,1711258238868,-1166.93467327,0.00025,10]
[320294907,1711258238909,-6805.83943638,0.00025,10]
[320294908,1711258238919,-759.004,0.00025,2]
[320294909,1711258238929,-154.95351395,0.00025,2]
[320294910,1711258238939,-445.20357372,0.00025037,2]
[320294911,1711258238948,-161.424866,0.00025038,2]
[320294912,1711258238957,-161.424867,0.00025038,2]
[320294913,1711258238966,-150.51627088,0.00025082,2]
[320294914,1711258238976,-1005.28250963,0.00025102,2]
[320294915,1711258238985,-500.0,0.00025153,2]
[320294916,1711258238996,-500.0,0.00025153,2]
[320294917,1711258239006,-500.0,0.00025153,2]
[320294918,1711258239015,-699.85,0.00025153,2]
[320294919,1711258239026,-500.0,0.00025153,2]
[320294920,1711258239035,-556.25,0.00025153,2]
[320294921,1711258239045,-657.43,0.00025153,2]
[320294922,1711258239054,-500.0,0.00025153,2]
[320294923,1711258239064,-500.0,0.00025153,2]
[320294924,1711258239073,-500.0,0.00025153,2]
[320294925,1711258239082,-688.93,0.00025153,2]
[320294926,1711258239093,-714.32,0.00025153,2]
[320294927,1711258239102,-614.66,0.00025153,2]
[320294928,1711258239112,-500.0,0.00025153,2]
[320294929,1711258239122,-198.72538609,0.00025153,2]
[320294930,1711258239132,-585.08,0.00025153,2]
[320294931,1711258239142,-500.0,0.00025153,2]
[320294932,1711258239152,-1766.52,0.00025153,2]
[320294933,1711258239161,-930.87,0.00025153,2]
[320294934,1711258239171,-596.51,0.00025153,2]
[320294935,1711258239180,-502.9,0.00025153,2]
[320294936,1711258239190,-433.60629522,0.00025153,2]
[320294937,1711258239199,-2113.43,0.00025153,2]
[320294938,1711258239208,-500.0,0.00025153,2]
[320294939,1711258239219,-652.44,0.00025153,2]
[320294940,1711258239228,-8376.2,0.00025153,2]
[320294941,1711258239237,-1579.32,0.00025153,2]
[320294942,1711258239247,-8140.31,0.00025153,2]
[320294943,1711258239257,-500.0,0.00025153,2]
[320294944,1711258239266,-500.0,0.00025153,2]
[320294945,1711258239275,-813.14,0.00025153,2]
[320294946,1711258239285,-500.0,0.00025153,2]
[320294947,1711258239294,-1536.4,0.00025153,2]
[320294948,1711258239303,-594.1,0.00025153,2]
[320294949,1711258239313,-633.04,0.00025153,2]
[320294950,1711258239322,-804.05,0.00025153,2]
[320294951,1711258239332,-500.0,0.00025153,2]
[320294952,1711258239342,-500.0,0.00025153,2]
[320294953,1711258239351,-500.0,0.00025153,2]
[320294954,1711258239360,-500.0,0.00025153,2]
[320294955,1711258239370,-2980.41,0.00025153,2]
[320294956,1711258239381,-500.0,0.00025153,2]
[320294957,1711258239390,-1821.35,0.00025153,2]
[320294958,1711258239399,-500.0,0.00025153,2]
[320294959,1711258239409,-500.0,0.00025153,2]
[320294960,1711258239418,-500.0,0.00025153,2]
[320294961,1711258239428,-819.62,0.00025153,2]
[320294962,1711258239437,-500.0,0.00025153,2]
[320294963,1711258239446,-6765.62,0.00025153,2]
[320294964,1711258239455,-500.0,0.00025197,2]
[320294965,1711258239464,-7479.8011256,0.00025205,2]
[320294977,1711258240796,-5380.5888744,0.00025205,2]
[320294978,1711258240806,-151.88560202,0.00025209,2]
[320294979,1711258240815,-166.666666,0.00025235,2]
[320294980,1711258240824,-150.90343483,0.00025406,2]
[320294981,1711258240833,-500.0,0.00025427,2]
[320294982,1711258240842,-500.0,0.00025427,2]
[320294983,1711258240851,-500.0,0.00025427,2]
[320294984,1711258240860,-699.85,0.00025427,2]
[320294985,1711258240869,-500.0,0.00025427,2]
[320294986,1711258240878,-556.25,0.00025427,2]
[320294987,1711258240887,-657.43,0.00025427,2]
[320294988,1711258240896,-500.0,0.00025427,2]
[320294989,1711258240905,-464.90833591,0.00025427,2]
[320294990,1711258240915,-500.0,0.00025427,2]
[320294991,1711258240924,-688.93,0.00025427,2]
[320294992,1711258240933,-714.32,0.00025427,2]
[320294993,1711258240942,-614.66,0.00025427,2]
[320294994,1711258240951,-500.0,0.00025427,2]
[320294995,1711258240960,-585.08,0.00025427,2]
[320294996,1711258240970,-500.0,0.00025427,2]
[320294997,1711258240979,-930.87,0.00025427,2]
[320294998,1711258240988,-596.51,0.00025427,2]
[320294999,1711258240997,-502.9,0.00025427,2]
[320295000,1711258241006,-2113.43,0.00025427,2]
[320295001,1711258241026,-500.0,0.00025427,2]
[320295002,1711258241035,-652.44,0.00025427,2]
[320295003,1711258241046,-8376.2,0.00025427,2]
[320295004,1711258241058,-1579.32,0.00025427,2]
[320295005,1711258241067,-8140.31,0.00025427,2]
[320295006,1711258241077,-500.0,0.00025427,2]
[320295007,1711258241086,-500.0,0.00025427,2]
[320295008,1711258241095,-813.14,0.00025427,2]
[320295009,1711258241105,-500.0,0.00025427,2]
[320295010,1711258241114,-1536.4,0.00025427,2]
[320295011,1711258241123,-594.1,0.00025427,2]
[320295012,1711258241133,-633.04,0.00025427,2]
[320295013,1711258241144,-804.05,0.00025427,2]
[320295014,1711258241154,-500.0,0.00025427,2]
[320295015,1711258241164,-500.0,0.00025427,2]
[320295016,1711258241173,-500.0,0.00025427,2]
[320295017,1711258241183,-500.0,0.00025427,2]
[320295018,1711258241192,-2980.41,0.00025427,2]
[320295019,1711258241201,-220.92087518,0.00025427,2]
[320295020,1711258241209,-1821.35,0.00025427,2]
[320295021,1711258241219,-500.0,0.00025427,2]
[320295022,1711258241229,-611.26198386,0.00025427,2]
[320295023,1711258241239,-447.48358355,0.00025427,2]
[320295024,1711258241249,-819.62,0.00025427,2]
[320295025,1711258241258,-500.0,0.00025427,2]
[320295026,1711258241269,-6765.62,0.00025427,2]
[320295027,1711258241278,-151.0,0.00025475,2]
[320295028,1711258241287,-12860.39,0.00025479,2]
[320295029,1711258241297,-161.424866,0.00025649,2]
[320295030,1711258241306,-161.424867,0.00025649,2]
[320295031,1711258241316,-400.0,0.000257,2]
[320295032,1711258241326,-412.0,0.000257,2]
[320295033,1711258241335,-12264.94622877,0.00025701,3]
[320295034,1711258241344,-500.0,0.00025701,2]
[320295035,1711258241353,-500.0,0.00025701,2]
[320295036,1711258241363,-500.0,0.00025701,2]
[320295037,1711258241373,-699.85,0.00025701,2]
[320295038,1711258241382,-500.0,0.00025701,2]
[320295039,1711258241392,-556.25,0.00025701,2]
[320295040,1711258241401,-657.43,0.00025701,2]
[320295041,1711258241410,-500.0,0.00025701,2]
[320295042,1711258241419,-642.51958234,0.00025701,2]
[320295043,1711258241428,-688.93,0.00025701,2]
[320295044,1711258241437,-714.32,0.00025701,2]
[320295045,1711258241447,-614.66,0.00025701,2]
[320295046,1711258241456,-500.0,0.00025701,2]
[320295047,1711258241465,-585.08,0.00025701,2]
[320295048,1711258241474,-268.21968014,0.00025701,2]
[320295087,1711258243677,-231.78031986,0.00025701,2]
[320295088,1711258243689,-762.21614082,0.00025701,2]
[320295089,1711258243711,-78.61139312,0.00025701,2]
[320295203,1711259158130,-150.51627088,0.00023769,2]
[320295204,1711259158150,-150.90343484,0.00023858,2]
[320295205,1711259158173,-14058.5212069,0.00024,3]
[320295206,1711259158194,-150.51627088,0.0002404,2]
[320295207,1711259158219,-166.666666,0.00024658,2]
[320295208,1711259158241,-150.90343484,0.00024758,2]
[320295209,1711259158261,-150.90343484,0.00024776,2]
[320295210,1711259158283,-500.0,0.00024879,2]
[320295211,1711259158304,-500.0,0.00024879,2]
[320295212,1711259158329,-818.27,0.00024879,2]
[320295213,1711259158351,-500.0,0.00024879,2]
[320295214,1711259158374,-608.95,0.00024879,2]
[320295215,1711259158394,-500.0,0.00024879,2]
[320295216,1711259158414,-553.91,0.00024879,2]
[320295217,1711259158434,-579.16,0.00024879,2]
[320295218,1711259158455,-500.0,0.00024879,2]
[320295219,1711259158476,-500.0,0.00024879,2]
[320295220,1711259158495,-500.0,0.00024879,2]
[320295221,1711259158515,-583.21,0.00024879,2]
[320295222,1711259158534,-500.0,0.00024879,2]
[320295223,1711259158553,-500.0,0.00024879,2]
[320295224,1711259158573,-500.0,0.00024879,2]
[320295225,1711259158592,-513.36496613,0.00024879,2]
[320295226,1711259158612,-3977.81014395,0.00024879,2]
[320295247,1711259431719,-150.90343484,0.00024479,2]
[320295249,1711259431728,-166.666666,0.00024658,2]
[320295251,1711259431737,-500.0,0.00024879,2]
[320295253,1711259431746,-500.0,0.00024879,2]
[320295255,1711259431755,-445.20357372,0.00025,2]
[320295257,1711259431763,-150.51627088,0.00025015,2]
[320295259,1711259431772,-4602.57073874,0.00025152,2]
[320295262,1711259431786,-7497.52926126,0.00025152,2]
[320295264,1711259431795,-500.0,0.00025153,2]
[320295266,1711259431805,-579.16,0.00025153,2]
[320295268,1711259431814,-500.0,0.00025153,2]
[320295270,1711259431824,-500.0,0.00025153,2]
[320295271,1711259431835,-583.21,0.00025153,2]
[320295272,1711259431844,-500.0,0.00025153,2]
[320295273,1711259431853,-500.0,0.00025153,2]
[320295274,1711259431862,-500.0,0.00025153,2]
[320295275,1711259431870,-500.0,0.00025153,2]
[320295276,1711259431879,-500.0,0.00025153,2]
[320295277,1711259431888,-166.666666,0.00025235,2]
[320295278,1711259431897,-151.88560202,0.00025335,2]
[320295279,1711259431905,-5687.50560098,0.00025426,2]
[320295303,1711259437747,-2930.93043813,0.00025426,2]
[320295304,1711259438013,-3481.66396089,0.00025426,2]